[Event "Titled Tuesday Blitz January 18 2022"]
[White "Dauner, Benedikt"]
[Black "Belyakov, Bogdan"]
[WhiteFideId "16225899"]
[BlackFideId "24104795"]
[WhiteElo "2230"]
[BlackElo "2407"]
[Result "0-1"]
[Round "09"]
[TimeControl "180+1"]
[Date "2022.01.18"]
[WhiteClock "0:00:01"]
[BlackClock "0:00:29"]

1. d4 {[%clk 0:03:00]}  Nf6 {[%clk 0:02:59]} 2. Nf3 {[%clk 0:03:01]}  g6 {[%clk 0:02:58]} 3. Nc3 {[%clk 0:03:01]}  d5 {[%clk 0:02:54]} 4. Bf4 {[%clk 0:03:00]}  Bg7 {[%clk 0:02:53]} 5. e3 {[%clk 0:03:00]}  O-O {[%clk 0:02:46]} 6. Be2 {[%clk 0:03:00]}  b6 {[%clk 0:02:47]} 7. h4 {[%clk 0:02:53]}  Bb7 {[%clk 0:02:44]} 8. Ne5 {[%clk 0:02:52]}  Nbd7 {[%clk 0:02:40]} 9. h5 {[%clk 0:02:52]}  Nxe5 {[%clk 0:02:40]} 10. Bxe5 {[%clk 0:02:45]}  h6 {[%clk 0:02:24]} 11. Bd3 {[%clk 0:02:14]}  g5 {[%clk 0:02:21]} 12. f4 {[%clk 0:02:12]}  gxf4 {[%clk 0:02:08]} 13. exf4 {[%clk 0:02:09]}  Ne4 {[%clk 0:02:08]} 14. Bxg7 {[%clk 0:02:07]}  Kxg7 {[%clk 0:02:08]} 15. Bxe4 {[%clk 0:01:50]}  dxe4 {[%clk 0:02:08]} 16. d5 {[%clk 0:01:51]}  e6 {[%clk 0:02:00]} 17. Qd4+ {[%clk 0:01:47]}  Qf6 {[%clk 0:01:59]} 18. Qxf6+ {[%clk 0:01:43]}  Kxf6 {[%clk 0:01:59]} 19. Nxe4+ {[%clk 0:01:44]}  Kf5 {[%clk 0:01:59]} 20. Ng3+ {[%clk 0:01:26]}  Kg4 {[%clk 0:01:53]} 21. Ne2 {[%clk 0:01:17]}  Bxd5 {[%clk 0:01:52]} 22. Kf2 {[%clk 0:01:05]}  Kf5 {[%clk 0:01:49]} 23. Rh4 {[%clk 0:00:57]}  Rg8 {[%clk 0:01:37]} 24. Nd4+ {[%clk 0:00:51]}  Kf6 {[%clk 0:01:37]} 25. g4 {[%clk 0:00:50]}  Rad8 {[%clk 0:01:35]} 26. Ke3 {[%clk 0:00:45]}  c5 {[%clk 0:01:34]} 27. Ne2 {[%clk 0:00:44]}  e5 {[%clk 0:01:29]} 28. fxe5+ {[%clk 0:00:32]}  Kxe5 {[%clk 0:01:29]} 29. Rf1 {[%clk 0:00:32]}  Be6 {[%clk 0:01:28]} 30. Rf4 {[%clk 0:00:22]}  Rd1 {[%clk 0:01:24]} 31. Re4+ {[%clk 0:00:22]}  Kd6 {[%clk 0:01:21]} 32. b3 {[%clk 0:00:17]}  Rf1 {[%clk 0:01:10]} 33. a4 {[%clk 0:00:15]}  Bd5 {[%clk 0:01:05]} 34. Rf4 {[%clk 0:00:14]}  Re8+ {[%clk 0:01:05]} 35. Kd3 {[%clk 0:00:13]}  Rd1+ {[%clk 0:01:04]} 36. Kc3 {[%clk 0:00:11]}  Rxe2 {[%clk 0:01:05]} 37. Rf6+ {[%clk 0:00:11]}  Ke7 {[%clk 0:01:03]} 38. Rxh6 {[%clk 0:00:10]}  Rdd2 {[%clk 0:00:58]} 39. g5 {[%clk 0:00:08]}  Rxc2+ {[%clk 0:00:58]} 40. Kd3 {[%clk 0:00:08]}  Rcd2+ {[%clk 0:00:52]} 41. Kc3 {[%clk 0:00:08]}  Rb2 {[%clk 0:00:52]} 42. Kd3 {[%clk 0:00:07]}  Rg2 {[%clk 0:00:52]} 43. Ke3 {[%clk 0:00:06]}  Rxg5 {[%clk 0:00:51]} 44. Rh7 {[%clk 0:00:05]}  Rxb3+ {[%clk 0:00:48]} 45. Kf4 {[%clk 0:00:06]}  Kf6 {[%clk 0:00:49]} 46. Rh6+ {[%clk 0:00:05]}  Kg7 {[%clk 0:00:44]} 47. Kxg5 {[%clk 0:00:06]}  Rg3+ {[%clk 0:00:44]} 48. Kf5 {[%clk 0:00:05]}  Kxh6 {[%clk 0:00:43]} 49. Ke5 {[%clk 0:00:05]}  Bc6 {[%clk 0:00:37]} 50. Kd6 {[%clk 0:00:06]}  Be8 {[%clk 0:00:36]} 51. Ke7 {[%clk 0:00:06]}  Re3+ {[%clk 0:00:37]} 52. Kf8 {[%clk 0:00:05]}  f5 {[%clk 0:00:35]} 53. a5 {[%clk 0:00:05]}  bxa5 {[%clk 0:00:35]} 54. Rc4 {[%clk 0:00:05]}  a4 {[%clk 0:00:33]} 55. Rxc5 {[%clk 0:00:05]}  a3 {[%clk 0:00:33]} 56. Rxf5 {[%clk 0:00:05]}  a2 {[%clk 0:00:31]} 57. Ra5 {[%clk 0:00:05]}  Re2 {[%clk 0:00:31]} 58. Rxa7 {[%clk 0:00:05]}  Bxh5 {[%clk 0:00:30]} 59. Ra6+ {[%clk 0:00:04]}  Bg6 {[%clk 0:00:30]} 60. Ra5 {[%clk 0:00:01]}  Re8# {[%clk 0:00:29]} 0-1


[Site "https://www.chess.com"]

[Event "Titled Tuesday Blitz January 18 2022"]
[White "Demin, Vladimir"]
[Black "Cunha, Lucas Aguiar"]
[WhiteFideId "4167457"]
[BlackFideId "2125404"]
[WhiteElo "2488"]
[BlackElo "2361"]
[Result "0-1"]
[Round "09"]
[TimeControl "180+1"]
[Date "2022.01.18"]
[WhiteClock "0:00:03"]
[BlackClock "0:00:14"]

1. d4 {[%clk 0:03:00]}  Nf6 {[%clk 0:02:59]} 2. g4 {[%clk 0:03:00]}  Nxg4 {[%clk 0:02:56]} 3. e4 {[%clk 0:02:59]}  d5 {[%clk 0:02:57]} 4. Be2 {[%clk 0:02:59]}  Nf6 {[%clk 0:02:52]} 5. e5 {[%clk 0:02:58]}  Nfd7 {[%clk 0:02:48]} 6. Nf3 {[%clk 0:02:57]}  e6 {[%clk 0:02:48]} 7. Bg5 {[%clk 0:02:57]}  Be7 {[%clk 0:02:48]} 8. Rg1 {[%clk 0:02:57]}  f6 {[%clk 0:02:39]} 9. Bf4 {[%clk 0:02:54]}  O-O {[%clk 0:02:32]} 10. Qd2 {[%clk 0:02:51]}  Kh8 {[%clk 0:02:21]} 11. Nc3 {[%clk 0:02:45]}  a6 {[%clk 0:02:20]} 12. O-O-O {[%clk 0:02:44]}  c5 {[%clk 0:02:14]} 13. Rg2 {[%clk 0:02:23]}  Nc6 {[%clk 0:02:09]} 14. Rdg1 {[%clk 0:02:20]}  cxd4 {[%clk 0:02:05]} 15. Nxd4 {[%clk 0:02:19]}  Nxd4 {[%clk 0:02:04]} 16. Qxd4 {[%clk 0:02:20]}  fxe5 {[%clk 0:02:05]} 17. Bxe5 {[%clk 0:01:59]}  Nxe5 {[%clk 0:02:05]} 18. Qxe5 {[%clk 0:02:00]}  Bf6 {[%clk 0:02:05]} 19. Qh5 {[%clk 0:02:00]}  e5 {[%clk 0:01:59]} 20. Bd3 {[%clk 0:01:48]}  e4 {[%clk 0:01:54]} 21. Nxe4 {[%clk 0:01:46]}  dxe4 {[%clk 0:01:47]} 22. Bxe4 {[%clk 0:01:47]}  Bxb2+ {[%clk 0:01:47]} 23. Kb1 {[%clk 0:01:44]}  Bf5 {[%clk 0:01:17]} 24. Bxf5 {[%clk 0:01:22]}  Rxf5 {[%clk 0:01:17]} 25. Qxf5 {[%clk 0:01:23]}  Qb6 {[%clk 0:01:16]} 26. Qd5 {[%clk 0:01:19]}  Bf6+ {[%clk 0:01:12]} 27. Qb3 {[%clk 0:01:18]}  Qd4 {[%clk 0:01:12]} 28. c3 {[%clk 0:01:17]}  Qd3+ {[%clk 0:01:06]} 29. Qc2 {[%clk 0:01:15]}  Qb5+ {[%clk 0:00:59]} 30. Qb3 {[%clk 0:01:13]}  Qf5+ {[%clk 0:00:59]} 31. Qc2 {[%clk 0:01:13]}  Qf3 {[%clk 0:00:51]} 32. Rg3 {[%clk 0:01:11]}  Qc6 {[%clk 0:00:50]} 33. Rh3 {[%clk 0:00:58]}  Qb5+ {[%clk 0:00:45]} 34. Ka1 {[%clk 0:00:49]}  h6 {[%clk 0:00:43]} 35. a4 {[%clk 0:00:35]}  Qc4 {[%clk 0:00:35]} 36. Kb2 {[%clk 0:00:32]}  Rc8 {[%clk 0:00:32]} 37. Rg6 {[%clk 0:00:25]}  Qb4+ {[%clk 0:00:28]} 38. Qb3 {[%clk 0:00:15]}  Qf4 {[%clk 0:00:20]} 39. Qc2 {[%clk 0:00:12]}  b5 {[%clk 0:00:17]} 40. Rgg3 {[%clk 0:00:03]}  b4 {[%clk 0:00:16]} 41. Rf3 {[%clk 0:00:03]}  bxc3+ {[%clk 0:00:16]} 42. Ka2 {[%clk 0:00:03]}  Qc4+ {[%clk 0:00:16]} 43. Ka1 {[%clk 0:00:03]}  Re8 {[%clk 0:00:14]} 0-1


[Site "https://www.chess.com"]

[Event "Titled Tuesday Blitz January 18 2022"]
[White "Donchenko, Alexander"]
[Black "Weishaeutel, Moritz"]
[WhiteFideId "24603295"]
[BlackFideId "12967300"]
[WhiteElo "2539"]
[BlackElo "2002"]
[Result "0-1"]
[Round "09"]
[TimeControl "180+1"]
[Date "2022.01.18"]
[WhiteClock "0:02:03"]
[BlackClock "0:01:58"]

1. e4 {[%clk 0:03:00]}  e5 {[%clk 0:02:59]} 2. Nf3 {[%clk 0:02:59]}  Nf6 {[%clk 0:03:00]} 3. d3 {[%clk 0:02:57]}  Nc6 {[%clk 0:02:58]} 4. g3 {[%clk 0:02:58]}  d5 {[%clk 0:02:58]} 5. exd5 {[%clk 0:02:56]}  Nxd5 {[%clk 0:02:59]} 6. Bg2 {[%clk 0:02:56]}  Be7 {[%clk 0:02:57]} 7. O-O {[%clk 0:02:56]}  O-O {[%clk 0:02:58]} 8. Nc3 {[%clk 0:02:56]}  Be6 {[%clk 0:02:56]} 9. Re1 {[%clk 0:02:55]}  Qd7 {[%clk 0:02:54]} 10. Nxe5 {[%clk 0:02:52]}  Nxe5 {[%clk 0:02:52]} 11. Nxd5 {[%clk 0:02:45]}  Bxd5 {[%clk 0:02:45]} 12. Rxe5 {[%clk 0:02:45]}  Bxg2 {[%clk 0:02:46]} 13. Kxg2 {[%clk 0:02:45]}  Bf6 {[%clk 0:02:45]} 14. Re1 {[%clk 0:02:42]}  Rfe8 {[%clk 0:02:43]} 15. Rxe8+ {[%clk 0:02:39]}  Rxe8 {[%clk 0:02:44]} 16. c3 {[%clk 0:02:39]}  Qd5+ {[%clk 0:02:40]} 17. Qf3 {[%clk 0:02:38]}  Qxf3+ {[%clk 0:02:40]} 18. Kxf3 {[%clk 0:02:39]}  Re1 {[%clk 0:02:41]} 19. d4 {[%clk 0:02:36]}  Bg5 {[%clk 0:02:38]} 20. Bxg5 {[%clk 0:02:22]}  Rxa1 {[%clk 0:02:39]} 21. Ke2 {[%clk 0:02:13]}  Rxa2 {[%clk 0:02:21]} 22. Bc1 {[%clk 0:02:13]}  Kf8 {[%clk 0:02:09]} 23. Kd3 {[%clk 0:02:11]}  Ke7 {[%clk 0:02:08]} 24. Kc2 {[%clk 0:02:10]}  Ra1 {[%clk 0:02:07]} 25. h4 {[%clk 0:02:09]}  Ke6 {[%clk 0:02:04]} 26. Bf4 {[%clk 0:02:08]}  c6 {[%clk 0:02:02]} 27. b4 {[%clk 0:02:03]}  Ra2+ {[%clk 0:01:58]} 0-1


[Site "https://www.chess.com"]

[Event "Titled Tuesday Blitz January 18 2022"]
[White "Estrada Nieto, Julian"]
[Black "Padmini, Rout"]
[WhiteFideId "5101018"]
[BlackFideId "5029295"]
[WhiteElo "2246"]
[BlackElo "2181"]
[Result "0-1"]
[Round "09"]
[TimeControl "180+1"]
[Date "2022.01.18"]
[WhiteClock "0:00:01"]
[BlackClock "0:00:09"]

1. e4 {[%clk 0:03:00]}  c5 {[%clk 0:02:59]} 2. Nf3 {[%clk 0:03:00]}  Nc6 {[%clk 0:02:58]} 3. Bb5 {[%clk 0:02:59]}  d6 {[%clk 0:02:56]} 4. d4 {[%clk 0:02:57]}  cxd4 {[%clk 0:02:56]} 5. Qxd4 {[%clk 0:02:57]}  Bd7 {[%clk 0:02:41]} 6. Bxc6 {[%clk 0:02:56]}  Bxc6 {[%clk 0:02:42]} 7. Nc3 {[%clk 0:02:55]}  Nf6 {[%clk 0:02:41]} 8. Bg5 {[%clk 0:02:55]}  Qb6 {[%clk 0:02:36]} 9. Qxb6 {[%clk 0:02:40]}  axb6 {[%clk 0:02:37]} 10. Bxf6 {[%clk 0:02:37]}  gxf6 {[%clk 0:02:33]} 11. Nd4 {[%clk 0:02:36]}  e6 {[%clk 0:02:31]} 12. O-O-O {[%clk 0:02:29]}  h5 {[%clk 0:02:23]} 13. Kb1 {[%clk 0:02:26]}  h4 {[%clk 0:02:23]} 14. g3 {[%clk 0:02:21]}  hxg3 {[%clk 0:02:05]} 15. hxg3 {[%clk 0:02:20]}  Rxh1 {[%clk 0:02:05]} 16. Rxh1 {[%clk 0:02:19]}  Bg7 {[%clk 0:02:05]} 17. f3 {[%clk 0:02:09]}  Bd7 {[%clk 0:01:40]} 18. g4 {[%clk 0:02:04]}  Ke7 {[%clk 0:01:37]} 19. Nce2 {[%clk 0:01:59]}  Rh8 {[%clk 0:01:31]} 20. Rxh8 {[%clk 0:01:54]}  Bxh8 {[%clk 0:01:32]} 21. c4 {[%clk 0:01:49]}  Kf8 {[%clk 0:01:17]} 22. Kc2 {[%clk 0:01:47]}  Kg7 {[%clk 0:01:17]} 23. Kd3 {[%clk 0:01:40]}  Kg6 {[%clk 0:01:17]} 24. f4 {[%clk 0:01:36]}  Bg7 {[%clk 0:01:16]} 25. Ke3 {[%clk 0:01:32]}  f5 {[%clk 0:01:07]} 26. exf5+ {[%clk 0:01:26]}  exf5 {[%clk 0:01:07]} 27. g5 {[%clk 0:01:15]}  f6 {[%clk 0:00:48]} 28. gxf6 {[%clk 0:01:12]}  Bxf6 {[%clk 0:00:49]} 29. b3 {[%clk 0:01:11]}  Kh5 {[%clk 0:00:48]} 30. Kf3 {[%clk 0:01:00]}  Kh4 {[%clk 0:00:45]} 31. Ke3 {[%clk 0:00:42]}  Kg4 {[%clk 0:00:44]} 32. Nb5 {[%clk 0:00:31]}  d5 {[%clk 0:00:28]} 33. Nbd4 {[%clk 0:00:17]}  dxc4 {[%clk 0:00:28]} 34. bxc4 {[%clk 0:00:17]}  Be7 {[%clk 0:00:14]} 35. Nb3 {[%clk 0:00:14]}  Bd6 {[%clk 0:00:13]} 36. Nbd4 {[%clk 0:00:11]}  Bc5 {[%clk 0:00:13]} 37. Kd3 {[%clk 0:00:10]}  Bc6 {[%clk 0:00:11]} 38. Ke3 {[%clk 0:00:05]}  Be4 {[%clk 0:00:11]} 39. a4 {[%clk 0:00:03]}  Bc6 {[%clk 0:00:09]} 40. Nc3 {[%clk 0:00:04]}  Bxd4+ {[%clk 0:00:09]} 41. Kxd4 {[%clk 0:00:04]}  Kxf4 {[%clk 0:00:09]} 42. Nd5+ {[%clk 0:00:03]}  Kg3 {[%clk 0:00:09]} 43. Nxb6 {[%clk 0:00:03]}  f4 {[%clk 0:00:10]} 44. c5 {[%clk 0:00:02]}  f3 {[%clk 0:00:10]} 45. Nc4 {[%clk 0:00:02]}  Bxa4 {[%clk 0:00:09]} 46. Ne3 {[%clk 0:00:02]}  Bc6 {[%clk 0:00:09]} 47. Ke5 {[%clk 0:00:01]}  f2 {[%clk 0:00:09]} 0-1


[Site "https://www.chess.com"]

[Event "Titled Tuesday Blitz January 18 2022"]
[White "Gelman, Alexander"]
[Black "Kislov, Oleg"]
[WhiteFideId "4118316"]
[BlackFideId "13503774"]
[WhiteElo "2375"]
[BlackElo "2252"]
[Result "0-1"]
[Round "09"]
[TimeControl "180+1"]
[Date "2022.01.18"]
[WhiteClock "0:01:48"]
[BlackClock "0:00:44"]

1. d4 {[%clk 0:03:00]}  d5 {[%clk 0:02:57]} 2. Nc3 {[%clk 0:03:01]}  Nf6 {[%clk 0:02:57]} 3. Bf4 {[%clk 0:03:01]}  e6 {[%clk 0:02:55]} 4. Nb5 {[%clk 0:03:01]}  Na6 {[%clk 0:02:54]} 5. e3 {[%clk 0:03:01]}  c6 {[%clk 0:02:54]} 6. Nc3 {[%clk 0:03:01]}  Bd6 {[%clk 0:02:54]} 7. Nf3 {[%clk 0:03:01]}  Bxf4 {[%clk 0:02:51]} 8. exf4 {[%clk 0:03:01]}  Nc7 {[%clk 0:02:51]} 9. Qd2 {[%clk 0:03:01]}  O-O {[%clk 0:02:48]} 10. O-O-O {[%clk 0:02:59]}  b5 {[%clk 0:02:47]} 11. Ne5 {[%clk 0:02:59]}  Qd6 {[%clk 0:02:41]} 12. Bd3 {[%clk 0:02:56]}  c5 {[%clk 0:02:13]} 13. dxc5 {[%clk 0:02:53]}  Qxc5 {[%clk 0:02:12]} 14. h4 {[%clk 0:02:43]}  b4 {[%clk 0:02:11]} 15. Ne2 {[%clk 0:02:43]}  a5 {[%clk 0:02:02]} 16. h5 {[%clk 0:02:42]}  Ba6 {[%clk 0:01:56]} 17. Kb1 {[%clk 0:02:29]}  a4 {[%clk 0:01:50]} 18. g4 {[%clk 0:02:22]}  b3 {[%clk 0:01:25]} 19. cxb3 {[%clk 0:02:19]}  axb3 {[%clk 0:01:23]} 20. a3 {[%clk 0:02:19]}  Qxf2 {[%clk 0:01:20]} 21. h6 {[%clk 0:02:04]}  g6 {[%clk 0:01:19]} 22. Qc3 {[%clk 0:01:54]}  Bxd3+ {[%clk 0:01:10]} 23. Nxd3 {[%clk 0:01:53]}  Qxe2 {[%clk 0:00:44]} 24. Qxf6 {[%clk 0:01:52]}  Qc2+ {[%clk 0:00:44]} 25. Ka1 {[%clk 0:01:48]}  Rxa3+ {[%clk 0:00:44]} 26. bxa3 {[%clk 0:01:48]}  Qa2# {[%clk 0:00:44]} 0-1


[Site "https://www.chess.com"]

[Event "Titled Tuesday Blitz January 18 2022"]
[White "Golizadeh, Asghar"]
[Black "Brodowski, Piotr"]
[WhiteFideId "12505269"]
[BlackFideId "1124480"]
[WhiteElo "2403"]
[BlackElo "2422"]
[Result "0-1"]
[Round "09"]
[TimeControl "180+1"]
[Date "2022.01.18"]
[WhiteClock "0:00:01"]
[BlackClock "0:00:11"]

1. e4 {[%clk 0:03:00]}  d6 {[%clk 0:02:58]} 2. d4 {[%clk 0:03:00]}  Nf6 {[%clk 0:02:57]} 3. Nc3 {[%clk 0:03:00]}  g6 {[%clk 0:02:53]} 4. f4 {[%clk 0:02:58]}  Bg7 {[%clk 0:02:51]} 5. Nf3 {[%clk 0:02:58]}  O-O {[%clk 0:02:49]} 6. Bd3 {[%clk 0:02:58]}  Bg4 {[%clk 0:02:48]} 7. h3 {[%clk 0:02:56]}  Bxf3 {[%clk 0:02:44]} 8. Qxf3 {[%clk 0:02:57]}  Nc6 {[%clk 0:02:41]} 9. Be3 {[%clk 0:02:51]}  e5 {[%clk 0:02:41]} 10. dxe5 {[%clk 0:02:32]}  dxe5 {[%clk 0:02:41]} 11. O-O-O {[%clk 0:02:32]}  Nd4 {[%clk 0:02:34]} 12. Qf2 {[%clk 0:02:20]}  c5 {[%clk 0:02:34]} 13. g4 {[%clk 0:02:03]}  exf4 {[%clk 0:02:28]} 14. Bxf4 {[%clk 0:02:02]}  Qa5 {[%clk 0:02:17]} 15. Kb1 {[%clk 0:01:49]}  Nd7 {[%clk 0:02:06]} 16. h4 {[%clk 0:01:37]}  b5 {[%clk 0:02:00]} 17. h5 {[%clk 0:01:30]}  Ne5 {[%clk 0:01:45]} 18. Nd5 {[%clk 0:01:21]}  Qd8 {[%clk 0:01:36]} 19. Bxe5 {[%clk 0:01:17]}  Bxe5 {[%clk 0:01:35]} 20. c3 {[%clk 0:01:16]}  Ne6 {[%clk 0:01:34]} 21. hxg6 {[%clk 0:01:12]}  fxg6 {[%clk 0:01:33]} 22. Qg2 {[%clk 0:00:59]}  c4 {[%clk 0:01:31]} 23. Bc2 {[%clk 0:00:45]}  Qg5 {[%clk 0:01:27]} 24. Qh3 {[%clk 0:00:42]}  Rf7 {[%clk 0:01:17]} 25. Nb4 {[%clk 0:00:25]}  Raf8 {[%clk 0:01:02]} 26. Nc6 {[%clk 0:00:25]}  Nf4 {[%clk 0:00:53]} 27. Qe3 {[%clk 0:00:24]}  Rc7 {[%clk 0:00:47]} 28. Nxe5 {[%clk 0:00:12]}  Qxe5 {[%clk 0:00:47]} 29. Rd2 {[%clk 0:00:09]}  b4 {[%clk 0:00:45]} 30. Rdh2 {[%clk 0:00:08]}  Rb8 {[%clk 0:00:40]} 31. cxb4 {[%clk 0:00:05]}  Rxb4 {[%clk 0:00:38]} 32. b3 {[%clk 0:00:05]}  c3 {[%clk 0:00:31]} 33. Rf2 {[%clk 0:00:04]}  g5 {[%clk 0:00:30]} 34. Rfh2 {[%clk 0:00:03]}  Rd4 {[%clk 0:00:28]} 35. Rh6 {[%clk 0:00:03]}  Rd2 {[%clk 0:00:18]} 36. b4 {[%clk 0:00:03]}  Rcd7 {[%clk 0:00:16]} 37. Bb3+ {[%clk 0:00:04]}  Kh8 {[%clk 0:00:15]} 38. Qg1 {[%clk 0:00:01]}  Rb2+ {[%clk 0:00:13]} 39. Ka1 {[%clk 0:00:01]}  c2 {[%clk 0:00:11]} 0-1


[Site "https://www.chess.com"]

[Event "Titled Tuesday Blitz January 18 2022"]
[White "Golubka, Petro"]
[Black "Martin Duque, Jesus"]
[WhiteFideId "14114224"]
[BlackFideId "2208954"]
[WhiteElo "2392"]
[BlackElo "2243"]
[Result "1-0"]
[Round "09"]
[TimeControl "180+1"]
[Date "2022.01.18"]
[WhiteClock "0:00:23"]
[BlackClock "0:00:57"]

1. d4 {[%clk 0:01:14]}  Nf6 {[%clk 0:02:59]} 2. Nf3 {[%clk 0:01:13]}  b6 {[%clk 0:02:59]} 3. c4 {[%clk 0:01:13]}  Bb7 {[%clk 0:03:00]} 4. a3 {[%clk 0:01:14]}  e6 {[%clk 0:02:58]} 5. Nc3 {[%clk 0:01:15]}  d5 {[%clk 0:02:57]} 6. Bg5 {[%clk 0:01:14]}  Be7 {[%clk 0:02:57]} 7. Qa4+ {[%clk 0:01:13]}  Qd7 {[%clk 0:02:57]} 8. Qxd7+ {[%clk 0:01:12]}  Nbxd7 {[%clk 0:02:58]} 9. Nb5 {[%clk 0:01:13]}  Bd6 {[%clk 0:02:58]} 10. cxd5 {[%clk 0:01:10]}  Bxd5 {[%clk 0:02:55]} 11. Rc1 {[%clk 0:01:10]}  O-O {[%clk 0:02:41]} 12. e3 {[%clk 0:01:08]}  Ne4 {[%clk 0:02:37]} 13. Bh4 {[%clk 0:01:07]}  Rfc8 {[%clk 0:02:30]} 14. Be2 {[%clk 0:01:05]}  a6 {[%clk 0:02:20]} 15. Nxd6 {[%clk 0:01:05]}  cxd6 {[%clk 0:02:21]} 16. O-O {[%clk 0:01:05]}  b5 {[%clk 0:02:18]} 17. Bd3 {[%clk 0:01:04]}  Nb6 {[%clk 0:02:14]} 18. Rfd1 {[%clk 0:01:03]}  Nc4 {[%clk 0:02:14]} 19. Rb1 {[%clk 0:01:01]}  Nxa3 {[%clk 0:02:08]} 20. bxa3 {[%clk 0:00:59]}  Nc3 {[%clk 0:02:08]} 21. e4 {[%clk 0:00:57]}  Nxd1 {[%clk 0:01:58]} 22. Rxd1 {[%clk 0:00:54]}  Bc4 {[%clk 0:01:58]} 23. Bb1 {[%clk 0:00:49]}  Bb3 {[%clk 0:01:58]} 24. Re1 {[%clk 0:00:48]}  Rc7 {[%clk 0:01:52]} 25. Bg3 {[%clk 0:00:32]}  Rd8 {[%clk 0:01:51]} 26. h4 {[%clk 0:00:31]}  Rc3 {[%clk 0:01:51]} 27. Bf4 {[%clk 0:00:25]}  h6 {[%clk 0:01:50]} 28. Bd2 {[%clk 0:00:25]}  Rc4 {[%clk 0:01:50]} 29. Bd3 {[%clk 0:00:24]}  Rc6 {[%clk 0:01:45]} 30. Ba5 {[%clk 0:00:23]}  Rdc8 {[%clk 0:01:45]} 31. d5 {[%clk 0:00:23]}  Rc1 {[%clk 0:01:43]} 32. dxe6 {[%clk 0:00:22]}  fxe6 {[%clk 0:01:42]} 33. Nd4 {[%clk 0:00:22]}  Rxe1+ {[%clk 0:01:41]} 34. Bxe1 {[%clk 0:00:22]}  Rc1 {[%clk 0:01:40]} 35. Kf1 {[%clk 0:00:23]}  Ba2 {[%clk 0:01:35]} 36. Ke2 {[%clk 0:00:22]}  e5 {[%clk 0:01:35]} 37. Nf5 {[%clk 0:00:22]}  d5 {[%clk 0:01:32]} 38. exd5 {[%clk 0:00:21]}  Kf7 {[%clk 0:01:29]} 39. Ne3 {[%clk 0:00:22]}  Ke7 {[%clk 0:01:26]} 40. Bb4+ {[%clk 0:00:22]}  Kd8 {[%clk 0:01:25]} 41. Bf5 {[%clk 0:00:23]}  Bc4+ {[%clk 0:01:21]} 42. Nxc4 {[%clk 0:00:22]}  Rxc4 {[%clk 0:01:21]} 43. d6 {[%clk 0:00:23]}  Rd4 {[%clk 0:00:49]} 44. Ba5+ {[%clk 0:00:22]}  Ke8 {[%clk 0:00:49]} 45. d7+ {[%clk 0:00:22]}  Rxd7 {[%clk 0:00:50]} 46. Bxd7+ {[%clk 0:00:22]}  Kxd7 {[%clk 0:00:51]} 47. Ke3 {[%clk 0:00:22]}  Ke6 {[%clk 0:00:51]} 48. Ke4 {[%clk 0:00:23]}  g5 {[%clk 0:00:52]} 49. h5 {[%clk 0:00:23]}  g4 {[%clk 0:00:52]} 50. g3 {[%clk 0:00:23]}  Kf6 {[%clk 0:00:52]} 51. Bb6 {[%clk 0:00:23]}  Kg5 {[%clk 0:00:52]} 52. Bc5 {[%clk 0:00:22]}  Kxh5 {[%clk 0:00:53]} 53. Kxe5 {[%clk 0:00:23]}  a5 {[%clk 0:00:53]} 54. Bd6 {[%clk 0:00:22]}  b4 {[%clk 0:00:53]} 55. Bxb4 {[%clk 0:00:22]}  axb4 {[%clk 0:00:53]} 56. axb4 {[%clk 0:00:23]}  Kg6 {[%clk 0:00:54]} 57. b5 {[%clk 0:00:24]}  h5 {[%clk 0:00:54]} 58. b6 {[%clk 0:00:25]}  h4 {[%clk 0:00:54]} 59. gxh4 {[%clk 0:00:25]}  g3 {[%clk 0:00:54]} 60. fxg3 {[%clk 0:00:24]}  Kh5 {[%clk 0:00:55]} 61. b7 {[%clk 0:00:24]}  Kg4 {[%clk 0:00:56]} 62. b8=Q {[%clk 0:00:24]}  Kh3 {[%clk 0:00:57]} 63. Kf4 {[%clk 0:00:24]}  Kh2 {[%clk 0:00:57]} 64. Kg4 {[%clk 0:00:23]} 1-0


[Site "https://www.chess.com"]

[Event "Titled Tuesday Blitz January 18 2022"]
[White "Hardaway, Brewington"]
[Black "Vignesh, N R"]
[WhiteFideId "30941849"]
[BlackFideId "25012215"]
[WhiteElo "1768"]
[BlackElo "2395"]
[Result "0-1"]
[Round "09"]
[TimeControl "180+1"]
[Date "2022.01.18"]
[WhiteClock "0:01:28"]
[BlackClock "0:01:49"]

1. Nf3 {[%clk 0:03:00]}  Nf6 {[%clk 0:02:58]} 2. e3 {[%clk 0:02:58]}  b6 {[%clk 0:02:58]} 3. d4 {[%clk 0:02:58]}  Bb7 {[%clk 0:02:59]} 4. Bd3 {[%clk 0:02:56]}  g6 {[%clk 0:02:59]} 5. O-O {[%clk 0:02:55]}  Bg7 {[%clk 0:03:00]} 6. c4 {[%clk 0:02:55]}  O-O {[%clk 0:03:01]} 7. Nc3 {[%clk 0:02:54]}  d6 {[%clk 0:03:02]} 8. a4 {[%clk 0:02:54]}  Nbd7 {[%clk 0:03:03]} 9. a5 {[%clk 0:02:55]}  a6 {[%clk 0:03:01]} 10. axb6 {[%clk 0:02:55]}  cxb6 {[%clk 0:03:01]} 11. d5 {[%clk 0:02:55]}  b5 {[%clk 0:03:00]} 12. Nd4 {[%clk 0:02:55]}  bxc4 {[%clk 0:02:55]} 13. Bxc4 {[%clk 0:02:55]}  Nb6 {[%clk 0:02:55]} 14. Qb3 {[%clk 0:02:53]}  Qc7 {[%clk 0:02:51]} 15. Be2 {[%clk 0:02:43]}  Nbxd5 {[%clk 0:02:51]} 16. Nxd5 {[%clk 0:02:42]}  Bxd5 {[%clk 0:02:52]} 17. Qd1 {[%clk 0:02:39]}  e5 {[%clk 0:02:48]} 18. Nf3 {[%clk 0:02:34]}  a5 {[%clk 0:02:45]} 19. Bd2 {[%clk 0:02:33]}  Ne4 {[%clk 0:02:36]} 20. Be1 {[%clk 0:02:32]}  Be6 {[%clk 0:02:33]} 21. Qa4 {[%clk 0:02:29]}  Qb7 {[%clk 0:02:30]} 22. Bxa5 {[%clk 0:02:25]}  Qxb2 {[%clk 0:02:17]} 23. Qb5 {[%clk 0:02:09]}  Rfb8 {[%clk 0:02:03]} 24. Qxb2 {[%clk 0:02:03]}  Rxb2 {[%clk 0:02:04]} 25. Bd3 {[%clk 0:02:00]}  Nc5 {[%clk 0:02:02]} 26. Bc3 {[%clk 0:01:43]}  Rxa1 {[%clk 0:01:56]} 27. Rxa1 {[%clk 0:01:44]}  Rb3 {[%clk 0:01:49]} 28. Ra8+ {[%clk 0:01:28]}  Bf8 {[%clk 0:01:49]} 29. Bd4 {[%clk 0:01:28]} 0-1


[Site "https://www.chess.com"]